bitfinex/quotes_BTCUSD_20250314
["timestamp","ask_amount","ask_price","bid_price","bid_amount"]
[1741979882458,1.92183366,84992.0,84991.0,0.0008]
[1741979882861,1.94598582,84992.0,84991.0,0.0008]
[1741979883647,2.01159934,84992.0,84991.0,0.0008]
[1741979884108,1.94598582,84992.0,84991.0,0.0008]
[1741979885276,1.95502731,84992.0,84991.0,0.0008]
[1741979885492,1.71832731,84992.0,84991.0,0.0008]
[1741979885714,0.57557515,84992.0,84991.0,0.0008]
[1741979887302,4.94937515,84992.0,84991.0,0.0008]
[1741979887522,1.07217515,84992.0,84991.0,0.0008]
[1741979887854,1.19175018,84992.0,84991.0,0.0008]
[1741979888798,1.19175018,84992.0,84991.0,0.0011394]
[1741979891850,1.07217515,84992.0,84991.0,0.0011394]
[1741979893299,1.086716,84992.0,84991.0,0.0011394]
[1741979893498,1.162116,84992.0,84991.0,0.0011394]
[1741979893786,0.547142,84971.0,84970.0,0.0003396]
[1741979898576,0.56559817,84971.0,84970.0,0.0003396]
[1741979899985,0.31845617,84971.0,84970.0,0.0003396]
[1741979901320,0.31845617,84971.0,84970.0,0.0770396]
[1741979901520,0.31845617,84971.0,84970.0,0.1367076]
[1741979901696,0.31845617,84971.0,84970.0,0.1249396]
[1741979903486,0.3,84971.0,84970.0,0.1249396]
[1741979906992,0.3,84971.0,84970.0,0.0003396]
[1741979907168,0.311768,84971.0,84970.0,0.0003396]
[1741979910073,0.3,84971.0,84970.0,0.0813396]
[1741979911049,0.311768,84971.0,84970.0,0.0813396]
[1741979912478,0.311768,84971.0,84970.0,0.0003396]
[1741979913553,0.33022262,84971.0,84970.0,0.0003396]
[1741979933469,0.311768,84971.0,84970.0,0.0003396]
[1741979938827,0.311768,84971.0,84970.0,0.0003396]
[1741979939207,0.311768,84971.0,84965.0,0.0003396]
[1741979939208,0.3,84967.0,84963.0,0.2352905]
[1741979939806,0.547156,84967.0,84961.0,0.2354]
[1741979941470,0.235396,84964.0,84959.0,0.235406]
[1741979941672,0.3,84964.0,84960.0,0.235402]
[1741979942456,0.3,84964.0,84961.0,0.2354]
[1741979942714,0.235378,84970.0,84961.0,0.2354]
[1741979942715,0.011769,84968.0,84961.0,0.2354]
[1741979942911,0.01663212,84964.0,84962.0,0.235397]
[1741979943115,0.01663212,84964.0,84960.0,0.235399]
[1741979943116,0.535389,84966.0,84960.0,0.235399]
[1741979943643,0.31845504,84964.0,84961.0,0.2354]
[1741979943846,0.01177,84958.0,84951.0,0.0011396]
[1741979944446,0.247185,84957.0,84951.0,0.0011396]
[1741979944649,0.23542,84955.0,84951.0,0.0011396]
[1741979945089,0.247185,84957.0,84952.0,0.235427]
[1741979945299,0.541305,84960.0,84953.0,0.235422]
[1741979945516,0.235425,84953.0,84951.0,0.0011396]
[1741979945728,0.247196,84953.0,84951.0,0.0011396]
[1741979945904,0.011771,84952.0,84951.0,0.0011396]
[1741979946919,0.311771,84952.0,84951.0,0.0011396]
[1741979947936,5.422304,84952.0,84951.0,0.0011396]
[1741979949704,4.397071,84952.0,84951.0,0.0011396]
[1741979949905,0.626971,84952.0,84951.0,0.0011396]
[1741979952681,0.00889006,84963.0,84951.0,0.0011396]
[1741979952856,0.235412,84958.0,84954.0,0.235421]
[1741979953116,0.3,84957.0,84951.0,0.2365686]
[1741979953318,0.001,84952.0,84951.0,0.2365686]
[1741979953473,0.001,84952.0,84951.0,0.0011396]
[1741979953669,0.23542,84955.0,84951.0,0.0011396]
[1741979954280,0.23542,84955.0,84951.0,0.2365666]
[1741979954593,0.23542,84955.0,84951.0,0.0011396]
[1741979955253,0.24716,84965.0,84952.0,0.0773]
[1741979955463,0.24716,84965.0,84951.0,0.0011396]
[1741979955464,0.01655945,84966.0,84963.0,0.235396]
[1741979955606,0.01655945,84966.0,84963.0,0.34568277]
[1741979955785,0.01655945,84966.0,84963.0,0.34450585]
[1741979956379,0.0011698,84964.0,84963.0,0.34450585]
[1741979957178,0.0001698,84964.0,84963.0,0.34450585]
[1741979957381,0.0001698,84964.0,84963.0,0.39320585]
[1741979958918,0.0001697,84991.0,84990.0,0.247087]
[1741979959122,0.0001697,84991.0,84990.0,0.47324785]
[1741979959524,0.0001697,84991.0,84990.0,0.47224785]
[1741979960337,0.0001697,84991.0,84990.0,0.47524785]
[1741979960747,0.0001697,84991.0,84990.0,0.47406837]
[1741979961069,0.0001697,84991.0,84990.0,0.47106837]
[1741979961186,0.0001697,84991.0,84990.0,0.47506837]
[1741979961384,0.01861878,84991.0,84990.0,0.47506837]
[1741979962630,0.01861878,84991.0,84990.0,0.49088666]
[1741979963034,0.01861878,84991.0,84990.0,0.48688666]
[1741979963448,0.01861878,84991.0,84990.0,0.49088666]
[1741979963449,0.01961878,84991.0,84990.0,0.49088666]
[1741979965247,7.8e-07,84991.0,84990.0,0.54088666]
[1741979965453,0.0005,85001.0,84999.0,0.24706]
[1741979965625,0.0005,85001.0,84999.0,0.39270085]
[1741979968250,0.0005,85001.0,84999.0,0.39870085]
[1741979969793,0.01861365,85000.0,84999.0,0.39870085]
[1741979970001,0.01861365,85000.0,84999.0,0.39270085]
[1741979970307,0.01861365,85000.0,84999.0,1.14594085]
[1741979971470,0.01861365,85000.0,84999.0,1.13994085]
[1741979972890,0.01861365,85000.0,84999.0,1.14594085]
[1741979973549,0.01861365,85000.0,84999.0,1.28054085]
[1741979978311,0.01861365,85000.0,84999.0,0.83574]
[1741979978513,0.0119337,85000.0,84999.0,0.006]
[1741979978714,0.0119337,85000.0,84999.0,0.00245866]
[1741979978914,0.02724905,85000.0,84999.0,0.00245866]
[1741979979137,0.0617337,85000.0,84999.0,0.00245866]
[1741979979272,0.011765,84996.0,84989.0,0.235322]
[1741979979478,0.011766,84990.0,84983.0,0.01454085]
[1741979979677,0.247086,84991.0,84985.0,0.01454085]
[1741979979904,0.247093,84989.0,84983.0,0.235341]
[1741979980102,0.247093,84989.0,84984.0,0.24987685]
[1741979980302,0.235321,84991.0,84986.0,0.01454085]
[1741979980510,0.247082,84992.0,84990.0,0.01454085]
[1741979980732,0.247082,84992.0,84989.0,0.001]
[1741979980911,0.247077,84994.0,84989.0,0.01454085]
[1741979981110,0.011765,84993.0,84989.0,0.01454085]
[1741979981451,0.247072,84996.0,84992.0,0.01454085]
[1741979981626,0.31222813,85000.0,84992.0,0.01454085]
[1741979981812,0.01844961,84993.0,84992.0,0.26162185]
[1741979983127,0.01844961,84993.0,84992.0,0.26362185]
[1741979983911,0.01844961,84993.0,84992.0,0.26162185]
[1741979984088,0.01844961,84993.0,84992.0,0.26562185]
[1741979985491,0.01844961,84993.0,84992.0,0.26162185]
[1741979985718,0.01844961,84993.0,84992.0,0.26562185]
[1741979986585,0.01844961,84993.0,84992.0,0.3007485]
[1741979986791,0.01844961,84993.0,84992.0,0.29995005]
[1741979987139,0.01844961,84993.0,84992.0,0.31171505]
[1741979987455,0.0001697,85000.0,84992.0,0.31171505]
[1741979987659,0.0001697,85000.0,84999.0,0.26160085]
[1741979987902,0.0001697,85000.0,84999.0,0.47582085]
[1741979988166,0.0001697,85000.0,84999.0,0.52232085]
[1741979988821,0.0001697,85000.0,84999.0,0.5332874]
[1741979989698,0.0001697,85000.0,84999.0,2.0685082]
[1741979990329,0.0001697,85000.0,84999.0,2.0745082]
[1741979990461,0.01834528,85000.0,84999.0,2.0745082]
[1741979992315,0.01834528,85000.0,84999.0,2.0687882]
[1741979992476,0.01834528,85000.0,84999.0,0.5222482]
[1741979992926,0.01834528,85000.0,84999.0,0.5282482]
[1741979993253,0.01834528,85000.0,84999.0,0.4509482]
[1741979993429,0.01834528,85000.0,84999.0,0.4449482]
[1741979993635,0.01834528,85000.0,84999.0,0.4509482]
[1741979993938,0.01851488,85000.0,84999.0,0.4509482]
[1741979995147,0.01851488,85000.0,84999.0,0.4449482]
[1741979995497,0.01851488,85000.0,84999.0,0.4509482]
[1741979995681,0.01851488,85000.0,84999.0,0.3137882]
[1741979996131,0.01851488,85000.0,84999.0,0.4447882]
[1741979996341,0.01851488,85000.0,84999.0,0.4507882]
[1741979996516,0.01851488,85000.0,84999.0,0.48717542]
[1741979996714,0.01851488,85000.0,84999.0,0.4507882]
[1741979997074,0.01851488,85000.0,84999.0,0.4155674]
[1741979998133,0.01851488,85000.0,84999.0,0.45194679]
[1741979998464,0.01851488,85000.0,84999.0,0.4155674]
[1741979999637,0.01851488,85000.0,84999.0,0.45080149]
[1741980000113,0.01851488,85000.0,84999.0,0.48718088]
[1741980000689,0.01851488,85000.0,84999.0,0.45080149]
[1741980001241,0.01851488,85000.0,84999.0,0.48716945]
[1741980001399,0.01851488,85000.0,84999.0,0.59176506]
[1741980001807,0.01851488,85000.0,84999.0,0.5553971]
[1741980002146,0.01851488,85000.0,84999.0,0.59176361]
[1741980002354,0.01851488,85000.0,84999.0,0.5553971]
[1741980002563,0.01851488,85000.0,84999.0,0.4183971]
[1741980002771,0.01851488,85000.0,84999.0,0.54081625]
[1741980002970,0.01851488,85000.0,84999.0,0.5553571]
[1741980003933,0.01851488,85000.0,84999.0,0.52012301]
[1741980004138,0.01851488,85000.0,84999.0,0.4155274]
[1741980006343,0.01851488,85000.0,84999.0,0.4158666]
[1741980007128,0.01851488,85000.0,84999.0,0.4977666]
[1741980007531,0.01851488,85000.0,84999.0,1.9158666]
[1741980008226,0.01851488,85000.0,84999.0,0.4158666]
[1741980008605,0.0001696,85000.0,84999.0,0.4158666]
[1741980012955,0.01861418,85000.0,84999.0,0.4158666]
[1741980013727,0.01861418,85000.0,84999.0,0.4511787]
[1741980014856,8.8e-07,85002.0,85001.0,0.247055]
[1741980014999,8.8e-07,85002.0,85001.0,0.30709585]
[1741980016047,8.8e-07,85002.0,85001.0,0.26159585]
[1741980016653,8.8e-07,85002.0,85001.0,0.3078745]
[1741980017267,8.8e-07,85002.0,85001.0,0.3138745]
[1741980017880,8.8e-07,85002.0,85001.0,0.42456965]
[1741980018087,8.8e-07,85002.0,85001.0,0.43641365]
[1741980018284,8.8e-07,85002.0,85001.0,0.42464965]
[1741980018536,8.8e-07,85002.0,85001.0,0.5743945]
[1741980018805,6e-07,85019.0,85018.0,0.370406]
[1741980018975,6e-07,85019.0,85018.0,0.52206685]
[1741980019188,6e-07,85019.0,85018.0,0.55850185]
[1741980019331,6e-07,85019.0,85018.0,0.52206685]
[1741980019533,6e-07,85019.0,85018.0,0.55847824]
[1741980020132,6e-07,85019.0,85018.0,0.52206685]
[1741980020332,6e-07,85019.0,85018.0,0.39866685]
[1741980020876,0.01501363,85036.0,85035.0,0.235197]
[1741980021084,0.01501363,85036.0,85035.0,0.24973785]
[1741980021290,0.0001699,85036.0,85035.0,0.24973785]
[1741980022318,0.0001699,85036.0,85035.0,0.25273785]
[1741980022546,0.0001699,85036.0,85035.0,0.26449685]
[1741980023361,0.0001699,85036.0,85035.0,0.26149685]
[1741980023791,0.0001699,85036.0,85035.0,0.26649685]
[1741980024193,9e-07,85036.0,85035.0,0.26149685]
[1741980024397,9e-07,85036.0,85035.0,0.34299685]
[1741980024570,9e-07,85036.0,85035.0,0.39899685]
[1741980025588,9e-07,85036.0,85035.0,0.41000226]
[1741980025861,9e-07,85036.0,85035.0,0.40400226]
[1741980027161,9e-07,85036.0,85035.0,0.41000226]
[1741980027594,9e-07,85036.0,85035.0,0.40400226]
[1741980028007,9e-07,85036.0,85035.0,0.41000226]
[1741980028660,9e-07,85036.0,85035.0,0.36000226]
[1741980029052,9e-07,85036.0,85035.0,0.41000226]
[1741980029416,9e-07,85036.0,85035.0,0.39899685]
[1741980030739,9e-07,85036.0,85035.0,0.40769115]
[1741980031559,9e-07,85036.0,85035.0,1.90769115]
[1741980032085,9e-07,85036.0,85035.0,0.40169115]
[1741980032319,9e-07,85036.0,85035.0,0.40769115]
[1741980032518,9e-07,85036.0,85035.0,0.41869656]
[1741980032898,9e-07,85036.0,85035.0,1.16549656]
[1741980033319,9e-07,85036.0,85035.0,1.11549656]
[1741980033553,9e-07,85036.0,85035.0,1.16549656]
[1741980033982,9e-07,85036.0,85035.0,1.15449115]
[1741980036586,9.5e-07,85044.0,85043.0,0.246933]
[1741980036799,0.0001698,85049.0,85048.0,0.246919]
[1741980036957,0.0001698,85049.0,85048.0,0.384959]
[1741980037167,0.0001698,85049.0,85048.0,0.39949985]
[1741980038072,0.0001698,85049.0,85048.0,0.39977608]
[1741980038451,0.0001698,85049.0,85048.0,0.41431693]
[1741980038687,8e-07,85049.0,85048.0,0.41431693]
[1741980038884,6e-07,85051.0,85050.0,0.26145285]
[1741980039520,0.0001698,85066.0,85055.0,0.246898]
[1741980039868,0.01843326,85059.0,85055.0,0.246898]
[1741980041018,0.0751,85058.0,85055.0,0.006]
[1741980041226,0.0751,85058.0,85055.0,0.017757]
[1741980042176,0.0751,85058.0,85055.0,0.006]
[1741980042327,0.09070851,85056.0,85055.0,0.006]
[1741980042526,0.24695,85037.0,85036.0,0.10480464]
[1741980042863,0.24695,85037.0,85027.0,0.10480464]
[1741980042864,0.01176,85028.0,85027.0,0.10480464]
[1741980043061,0.311759,85035.0,85028.0,0.235216]
[1741980043263,0.3,85033.0,85027.0,0.10480464]
[1741980043468,0.01176,85032.0,85027.0,0.10480464]
[1741980043663,0.01176,85034.0,85028.0,0.235216]
[1741980043870,0.3,85029.0,85027.0,0.10480464]
[1741980045952,0.3,85029.0,85027.0,0.003]
[1741980046944,0.54697,85031.0,85027.0,0.003]
[1741980047144,0.54697,85031.0,85026.0,0.235219]
[1741980047287,0.3,85031.0,85027.0,0.235216]
[1741980047488,0.3,85031.0,85028.0,0.235216]
[1741980047700,0.53521,85031.0,85027.0,0.001]
[1741980047938,0.54697,85031.0,85026.0,0.235219]
[1741980048112,0.54697,85031.0,85027.0,0.002]
[1741980048314,0.246973,85030.0,85027.0,0.002]
[1741980048723,0.3,85029.0,85027.0,0.002]
[1741980048889,0.3,85029.0,85027.0,0.003]
[1741980049093,0.3,85029.0,85024.0,0.235227]
[1741980049474,0.3,85029.0,85027.0,0.003]
[1741980049675,0.3,85029.0,85026.0,0.002]
[1741980049878,0.01844175,85028.0,85026.0,0.002]
[1741980050082,0.03020175,85028.0,85027.0,0.003]
[1741980051470,0.12656819,85028.0,85027.0,0.003]
[1741980051734,0.011762,85015.0,84995.0,0.011765]
[1741980051934,0.247045,85005.0,85000.0,0.13756]
[1741980052291,0.3,85002.0,84992.0,0.2356542]
[1741980052514,0.311764,85002.0,84992.0,0.0003392]
[1741980053198,0.311764,85002.0,85001.0,0.0043392]
[1741980053432,0.395064,85002.0,85001.0,0.0043392]
[1741980053662,0.395064,85002.0,85001.0,0.0083392]
[1741980053886,0.40960485,85002.0,85001.0,0.0083392]
[1741980054105,6.07695785,85002.0,85001.0,0.00202537]
[1741980054344,6.19653288,85002.0,85001.0,0.00202537]
[1741980054554,4.84499988,85002.0,85001.0,0.00202537]
[1741980054777,2.42542485,85002.0,85001.0,0.00202537]
[1741980054999,0.02630485,85000.0,84992.0,0.0003392]
[1741980055221,3.61740485,85000.0,84992.0,0.0003392]
[1741980055463,3.91740485,85000.0,84992.0,0.0003392]
[1741980056473,0.32630485,85000.0,84992.0,0.0003392]
[1741980056687,3.92340485,85000.0,84992.0,0.0003392]
[1741980057124,3.26510485,85000.0,84992.0,0.0003392]
[1741980057570,3.22050485,85000.0,84992.0,0.0003392]
[1741980057785,3.23895679,85000.0,84992.0,0.0003392]
[1741980058217,3.24095679,85000.0,84992.0,0.0003392]
[1741980059320,3.65485679,85000.0,84992.0,0.0003392]
[1741980059523,0.547078,84993.0,84992.0,0.0003392]
[1741980059672,0.960978,84993.0,84992.0,0.0003392]
[1741980060494,1.007878,84993.0,84992.0,0.0003392]
[1741980060699,6.196111,84993.0,84992.0,0.0003392]
[1741980060912,0.547098,84986.0,84963.0,0.0003396]
[1741980061242,0.960998,84986.0,84963.0,0.0003396]
[1741980061541,6.0899857,84986.0,84963.0,0.0003396]
[1741980062365,6.0939857,84986.0,84963.0,0.0003396]
[1741980062563,5.9145527,84986.0,84963.0,0.0003396]
[1741980062803,5.8206527,84986.0,84963.0,0.0003396]
[1741980063206,5.84372486,84986.0,84963.0,0.0003396]
[1741980063433,5.84372486,84986.0,84964.0,0.235393]
[1741980064787,5.84372486,84986.0,84963.0,0.0003396]
[1741980064984,5.84372486,84986.0,84963.0,0.2357336]
[1741980065219,0.9854527,84986.0,84976.0,0.23536]
[1741980065424,0.9854527,84986.0,84972.0,0.235371]
[1741980065648,0.966998,84986.0,84972.0,0.235371]
[1741980065804,0.42869298,84986.0,84974.0,0.011768]
[1741980066006,0.42869298,84986.0,84973.0,0.00117686]
[1741980066007,0.44045898,84986.0,84973.0,0.235368]
[1741980066216,0.74045898,84986.0,84972.0,0.13744]
[1741980066620,0.73845898,84986.0,84972.0,0.13744]
[1741980067037,0.73945898,84986.0,84974.0,0.235363]
[1741980067607,0.73545898,84986.0,84974.0,0.235363]
[1741980067812,0.73745898,84986.0,84974.0,0.235363]
[1741980068019,0.73745898,84986.0,84972.0,0.37281]
[1741980068178,0.73445898,84986.0,84972.0,0.37281]
[1741980068377,0.73445898,84986.0,84976.0,0.235358]
[1741980068596,0.75391219,84986.0,84979.0,0.23535]
[1741980068800,0.74214619,84986.0,84979.0,0.23535]
[1741980069004,0.31945321,84986.0,84984.0,0.235336]
[1741980069212,0.01945321,84986.0,84984.0,0.235336]
[1741980069896,0.01945321,84986.0,84980.0,0.235346]
[1741980070104,0.26655121,84986.0,84976.0,0.235358]
[1741980070393,0.56655121,84986.0,84985.0,0.0023394]
[1741980070583,0.56555121,84986.0,84985.0,0.0023394]
[1741980071347,0.56555121,84986.0,84985.0,0.0003394]
[1741980071548,0.67479382,84986.0,84985.0,0.0003394]
[1741980071745,0.67479382,84986.0,84985.0,0.0033394]
[1741980071959,0.56555121,84986.0,84985.0,0.0033394]
[1741980072128,0.97945121,84986.0,84985.0,0.0033394]
[1741980072697,1.05029121,84986.0,84985.0,0.0033394]
[1741980073099,1.05029121,84986.0,84985.0,0.0003394]
[1741980073306,1.05029121,84986.0,84985.0,0.0013394]
[1741980073708,0.97945121,84986.0,84985.0,0.0013394]
[1741980074630,0.97945121,84986.0,84985.0,0.0003394]
[1741980075222,0.97945121,84986.0,84985.0,0.0013394]
[1741980077615,4.86365121,84986.0,84985.0,0.0013394]
[1741980077797,4.614198,84986.0,84985.0,0.0013394]
[1741980078356,3.545098,84986.0,84985.0,0.0013394]
[1741980080502,3.56355329,84986.0,84985.0,0.0013394]
[1741980080655,3.18675329,84986.0,84985.0,0.0013394]
[1741980080867,1.76435329,84986.0,84985.0,0.0013394]
[1741980087006,1.88392832,84986.0,84985.0,0.0013394]
[1741980087938,1.09902832,84986.0,84985.0,0.0013394]
[1741980088140,6.20956132,84986.0,84985.0,0.0013394]
[1741980089172,1.74815329,84986.0,84985.0,0.0013394]
[1741980089420,1.37915329,84986.0,84985.0,0.0013394]
[1741980089606,1.36595329,84986.0,84985.0,0.0013394]
[1741980090682,1.35195329,84986.0,84985.0,0.0013394]
[1741980094140,0.547162,84964.0,84963.0,0.0003396]
[1741980094554,0.3,84964.0,84963.0,0.0460396]
[1741980094758,0.31845516,84964.0,84963.0,0.0460396]
[1741980095158,0.31845516,84964.0,84963.0,0.0003396]
[1741980095159,0.33022416,84964.0,84963.0,0.0003396]
[1741980095359,0.33122416,84964.0,84963.0,0.0043396]
[1741980096541,0.33222416,84964.0,84963.0,0.0043396]
[1741980097023,0.33122416,84964.0,84963.0,0.0043396]
[1741980097220,0.33022416,84964.0,84963.0,0.0003396]
[1741980097403,0.33022416,84964.0,84963.0,0.0013396]
[1741980097739,0.38619351,84964.0,84963.0,0.0013396]
[1741980098869,0.34402998,84964.0,84963.0,0.0013396]
[1741980099211,0.32557482,84964.0,84963.0,0.0013396]
[1741980100120,0.32557482,84964.0,84963.0,0.0003396]
[1741980100537,2.04247482,84964.0,84963.0,0.0003396]
[1741980101163,2.04247482,84964.0,84963.0,6e-07]
[1741980101164,2.20655567,84964.0,84963.0,6e-07]
[1741980101360,0.6102307,84964.0,84963.0,6e-07]
[1741980101574,0.64812042,84964.0,84963.0,6e-07]
[1741980101772,0.6102307,84964.0,84963.0,6e-07]
[1741980102001,0.62769056,84964.0,84963.0,6e-07]
[1741980102232,0.50811553,84964.0,84963.0,6e-07]
[1741980102423,0.64439553,84964.0,84963.0,6e-07]
[1741980103386,0.64539553,84964.0,84963.0,6e-07]
[1741980103879,0.64439553,84964.0,84963.0,6e-07]
[1741980104076,0.64539553,84964.0,84963.0,6e-07]
[1741980104317,0.76497056,84964.0,84963.0,6e-07]
[1741980104522,1.06429553,84964.0,84963.0,6e-07]
[1741980104764,1.10218525,84964.0,84963.0,6e-07]
[1741980105254,1.10218525,84964.0,84949.0,0.000339]
[1741980105255,0.547198,84952.0,84951.0,0.00034021]
[1741980105577,0.60783885,84952.0,84951.0,0.00034021]
[1741980105787,1.20746857,84952.0,84949.0,2.1e-07]
[1741980106010,1.20746857,84952.0,84922.0,0.0003392]
[1741980106011,0.56176685,84942.0,84941.0,2e-07]
[1741980106144,0.97566685,84942.0,84941.0,2e-07]
[1741980106546,0.99968765,84942.0,84941.0,2e-07]
[1741980107348,1.00168765,84942.0,84941.0,2e-07]
[1741980107548,1.00468765,84942.0,84941.0,2e-07]
[1741980108392,1.02315179,84942.0,84941.0,2e-07]
[1741980108961,0.547282,84923.0,84922.0,0.0003392]
[1741980109759,0.56574815,84923.0,84922.0,0.0003392]
[1741980110299,0.56574815,84923.0,84922.0,0.0013392]
[1741980110729,0.56574815,84923.0,84922.0,0.0003392]
[1741980110930,0.56574815,84923.0,84922.0,0.0013392]
[1741980113687,0.579996,84923.0,84922.0,0.0013392]
[1741980116238,0.032714,84923.0,84922.0,0.1317392]
[1741980116440,0.01424785,84923.0,84922.0,0.1317392]
[1741980116674,0.01424785,84923.0,84922.0,0.3672492]
[1741980116822,0.011774,84930.0,84924.0,0.235503]
[1741980117029,0.235482,84933.0,84924.0,0.235503]
[1741980117228,0.4711296,84964.0,84922.0,0.1317392]
[1741980117229,0.011773,84939.0,84923.0,0.011775]
[1741980117437,0.011773,84937.0,84932.0,0.23548]
[1741980117635,0.235471,84936.0,84932.0,0.23548]
[1741980117968,0.011773,84937.0,84927.0,0.235493]
[1741980117969,0.247254,84933.0,84927.0,0.235493]
[1741980118167,0.001,84930.0,84927.0,0.235493]
[1741980118653,0.235484,84932.0,84927.0,0.235493]
[1741980118955,0.3,84934.0,84926.0,0.235498]
[1741980119189,0.01846402,84931.0,84930.0,0.235487]
[1741980121082,0.01846402,84931.0,84929.0,0.235488]
[1741980121259,0.01846402,84931.0,84928.0,0.235492]
[1741980121461,0.01846402,84931.0,84930.0,0.001]
[1741980121809,0.01846402,84931.0,84930.0,0.002]
[1741980121979,0.01846402,84931.0,84930.0,0.001]
[1741980123279,0.03023802,84931.0,84930.0,0.001]
[1741980125743,0.33023802,84931.0,84930.0,0.001]
[1741980125947,2.96983802,84931.0,84930.0,0.001]
[1741980126115,2.96983802,84931.0,84930.0,0.0011698]
[1741980126477,2.951374,84931.0,84930.0,0.0011698]
[1741980127008,1.577574,84931.0,84930.0,0.0011698]
[1741980127359,0.311774,84931.0,84930.0,0.0001698]
[1741980128094,0.312774,84931.0,84930.0,0.0001698]
[1741980129086,0.33123945,84931.0,84930.0,0.0001698]
[1741980132329,0.35803481,84931.0,84930.0,0.0001698]
[1741980132596,0.33123945,84931.0,84930.0,0.0001698]
[1741980137266,0.31946545,84931.0,84930.0,0.0001698]
[1741980137478,0.01946545,84931.0,84930.0,0.0793698]
[1741980137655,0.001,84931.0,84930.0,0.1375438]
[1741980138093,0.0003396,84941.0,84930.0,0.1375438]
[1741980138362,0.0003396,84941.0,84933.0,0.235479]
[1741980138533,0.0003396,84941.0,84938.0,0.235464]
[1741980138799,0.0003396,84941.0,84932.0,0.147774]
[1741980138800,0.2475696,84941.0,84935.0,0.235474]
[1741980138995,0.0003396,84941.0,84938.0,0.235464]
[1741980139206,0.0003396,84941.0,84940.0,0.31666]
[1741980139408,0.0003396,84941.0,84940.0,0.328433]
[1741980140102,0.0003396,84941.0,84940.0,0.31666]
[1741980140425,0.01879999,84941.0,84940.0,0.31666]
[1741980140630,0.01879999,84941.0,84940.0,0.0812]
[1741980140945,0.01879999,84941.0,84930.0,0.2820558]
[1741980140946,0.011773,84938.0,84937.0,0.13592]
[1741980141184,0.247244,84936.0,84935.0,0.0812]
[1741980141383,0.247244,84936.0,84935.0,0.21712]
[1741980141577,0.247259,84931.0,84930.0,0.0465698]
[1741980141751,0.247259,84931.0,84930.0,0.1360498]
[1741980142322,0.01846329,84931.0,84930.0,0.1360498]
[1741980142520,0.03023729,84931.0,84930.0,0.0001698]
[1741980143856,0.03123729,84931.0,84930.0,0.0041698]
[1741980144258,0.03023729,84931.0,84930.0,0.0001698]
[1741980144496,0.03023729,84931.0,84930.0,0.0011698]
[1741980145111,0.03123729,84931.0,84930.0,0.0011698]
[1741980145490,0.03023729,84931.0,84930.0,0.0011698]
[1741980149541,0.4071527,84931.0,84930.0,0.0011698]
[1741980149759,0.33023729,84931.0,84930.0,0.0011698]
[1741980158260,0.311774,84931.0,84930.0,0.0011698]
[1741980159895,0.3338535,84931.0,84930.0,0.0011698]
[1741980160280,0.35719241,84931.0,84930.0,0.0001698]
[1741980160510,0.547282,84923.0,84922.0,0.0003392]
[1741980161316,0.5693615,84923.0,84922.0,0.0003392]
[1741980162083,0.5693615,84923.0,84922.0,0.0023392]
[1741980164595,0.547282,84923.0,84922.0,0.0023392]
[1741980173562,0.56937401,84923.0,84922.0,0.0023392]
[1741980174942,0.547282,84923.0,84922.0,0.0023392]
[1741980181081,0.595582,84923.0,84922.0,0.0023392]
[1741980182035,0.595582,84923.0,84922.0,0.0003392]
[1741980182268,0.595582,84923.0,84922.0,0.0023392]
[1741980183000,0.547282,84923.0,84922.0,0.0023392]
[1741980183937,0.547282,84923.0,84922.0,0.0003392]
[1741980184128,0.547282,84923.0,84922.0,0.0013392]
[1741980185308,0.76541364,84923.0,84922.0,0.0013392]
[1741980185782,5.83870015,84923.0,84922.0,0.0013392]
[1741980186264,5.78976715,84923.0,84922.0,0.0013392]
[1741980186486,5.49376715,84923.0,84922.0,0.0013392]
[1741980186734,5.24823553,84923.0,84922.0,0.0013392]
[1741980187200,5.24423553,84923.0,84922.0,0.0013392]
[1741980187412,5.21718327,84923.0,84922.0,0.0013392]
[1741980187629,5.51718327,84923.0,84922.0,0.0003392]
[1741980187851,5.58802327,84923.0,84922.0,0.0003392]
[1741980188039,5.57312327,84923.0,84922.0,0.0003392]
[1741980188249,5.98702327,84923.0,84922.0,0.0003392]
[1741980188490,6.26498686,84923.0,84922.0,0.0003392]
[1741980188727,4.70411183,84923.0,84922.0,0.0003392]
[1741980188892,4.69191183,84923.0,84922.0,0.0003392]
[1741980189705,4.69195183,84923.0,84922.0,0.0003392]
[1741980190142,4.56341894,84923.0,84922.0,0.0003392]
[1741980190570,4.55235056,84923.0,84922.0,0.0003392]
[1741980191027,4.53345056,84923.0,84922.0,0.0003392]
[1741980191383,4.26665056,84923.0,84922.0,0.0003392]
[1741980191596,4.24965056,84923.0,84922.0,0.0003392]
[1741980192284,4.36922559,84923.0,84922.0,0.0003392]
[1741980193131,4.27232559,84923.0,84922.0,0.0003392]
[1741980194031,0.547302,84916.0,84915.0,0.000339]
[1741980194854,0.547302,84916.0,84914.0,0.000339]
[1741980195053,0.547313,84912.0,84911.0,1e-06]
[1741980195263,4.201213,84912.0,84911.0,1e-06]
[1741980195471,4.591813,84912.0,84911.0,1e-06]
[1741980195716,4.727613,84912.0,84911.0,1e-06]
[1741980196148,0.625426,84908.0,84907.0,4.001e-05]
[1741980196354,5.855299,84908.0,84907.0,4.001e-05]
[1741980196560,0.618186,84901.0,84900.0,4e-05]
[1741980196780,0.54741,84879.0,84878.0,0.0130028]
[1741980198086,0.56588685,84879.0,84878.0,0.0130028]
[1741980198571,0.01847685,84879.0,84878.0,0.0130028]
[1741980198783,0.26588685,84879.0,84878.0,0.0130028]
[1741980199192,0.28862914,84879.0,84878.0,0.0130028]
[1741980199614,0.28962914,84879.0,84878.0,0.0130028]
[1741980210398,0.28962914,84879.0,84878.0,0.0130028]
[1741980211573,0.58962914,84879.0,84878.0,0.0130028]
[1741980211936,0.58862914,84879.0,84878.0,0.0130028]
[1741980212140,0.58962914,84879.0,84878.0,0.0130028]
[1741980212589,0.59162914,84879.0,84878.0,0.0130028]
[1741980212753,0.57315229,84879.0,84878.0,0.0130028]
[1741980213374,0.76606753,84879.0,84878.0,0.0130028]
[1741980213559,0.65395229,84879.0,84878.0,0.0130028]
[1741980214254,0.67719301,84879.0,84878.0,0.0130028]
[1741980214589,1.09109301,84879.0,84878.0,0.0130028]
[1741980215423,4.47457088,84879.0,84878.0,0.0130028]
[1741980215625,2.45053088,84879.0,84878.0,0.0130028]
[1741980216005,2.45653088,84879.0,84878.0,0.0130028]
[1741980216436,2.45649088,84879.0,84878.0,0.0130028]
[1741980219736,2.64698591,84879.0,84878.0,8e-07]
[1741980219946,1.16689088,84879.0,84878.0,8e-07]